[Event "Superbet Blitz Poland 2022"]
[Site "Warsaw"]
[Date "2022.05.22"]
[Round "2.1"]
[White "Aronian, Levon"]
[Black "Rapport, Richard"]
[Result "1-0"]
[ECO "E94"]
[WhiteElo "2765"]
[BlackElo "2776"]
[Annotator "TA"]
[PlyCount "165"]
[EventDate "2022.05.22"]
[EventType "tourn"]
[EventCountry "POL"]
[SourceTitle "playchess.com"]
[Source "ChessBase"]
[SourceQuality "1"]
[TimeControl "300+2"]

{[%evp 18,165,6,16,35,4,28,33,37,27,47,-7,10,14,22,12,31,42,30,39,42,49,49,45,57,40,51,30,61,66,127,66,62,26,29,29,30,32,21,-27,-13,-110,-9,-35,-18,-151,0,-34,-38,-29,-8,-16,-2,-40,-31,-41,0,-32,-7,-16,0,0,0,0,0,0,0,0,315,0,0,0,0,0,0,0,21,0,0,0,108,111,104,45,61,0,102,47,40,0,147,150,150,150,150,89,147,0,159,31,76,67,68,-8,98,98,127,127,137,104,104,104,104,33,34,8,148,16,208,148,333,148,148,43,35,34,468,148,476,0,416,358,468,468,468,460,460,31,29970,1736,29974,29976,29977,29978,29978,29979,29981,29980,29988,29987]} 1. d4 {[%emt 0:00:01]} Nf6 {[%emt 0:00:02]} 2. c4 {[%emt 0:00:01]} g6 {[%emt 0:00:01]} 3. Nc3 {[%emt 0:00:01]} Bg7 {[%emt 0:00:01]} 4. e4 {[%emt 0:00:01]} d6 {[%emt 0:00:01]} 5. Be2 {[%emt 0:00:01]} O-O {[%emt 0:00:01]} 6. Be3 {[%emt 0:00:01]} c6 {[%emt 0:00:03]} 7. Nf3 {[%emt 0:00:17]} e5 {[%emt 0:00:01]} 8. O-O {[%emt 0:00:19]} exd4 {[%emt 0:00:04]} 9. Nxd4 {[%emt 0:00:04]} Re8 {[%emt 0:00:01]} 10. Qc2 {[%emt 0:00:43]} Na6 {[%emt 0:00:09][%cal Bb8a6,Ba6b4,Bb4d5,Bd5c3][%mdl 32] E94: King's Indian: Classical: 6 Be2 e5 7 0-0: Various Black 7th moves.} 11. Rfe1 {[%emt 0:00:23]} Qe7 {[%emt 0:00:13][%cal Rf6e4]} (11... Nb4 $5 {[%cal Rb4c2]} 12. Qd2 Nxe4 13. Nxe4 Rxe4 $11) 12. f3 {[%emt 0:00:29]} d5 {[%emt 0:00:01] White is slightly better.} 13. cxd5 {[%emt 0:00:06]} Nb4 {[%emt 0:00:03][%csl LRc2,LRd5] [#]} 14. Qb3 $146 {[%emt 0:00:28] [#]} (14. Qc1 $14) ({Predecessor:} 14. Qd2 Nbxd5 15. Bh6 Nxc3 16. bxc3 Bxh6 17. Qxh6 Qc5 18. Qd2 Be6 19. Qb2 Rab8 20. Qb4 Qe5 {½-½ (20) Nesterov,A (2531)-Basso,P (2583) Bassano del Grappa 2022}) 14... Nbxd5 $1 {[%emt 0:00:02]} 15. Bf2 {[%emt 0:00:26]} Nxc3 {[%emt 0:00:03]} 16. bxc3 {[%emt 0:00:07]} Nd7 {[%emt 0:00:01]} 17. a4 {[%emt 0:00:06]} Nc5 {[%emt 0:00:30]} 18. Qa3 {[%emt 0:00:07][%cal Od4c6]} Bf8 {[%emt 0:00:02]} 19. a5 {[%emt 0:00:09]} Qf6 {[%emt 0:00:09][%cal Oc5e4] White must now prevent ...Nxe4!} 20. Qb2 {[%emt 0:00:07]} h5 {[%emt 0:00:05]} 21. Rad1 {[%emt 0:00:37]} h4 {[%emt 0:00:03]} 22. Qc1 {[%emt 0:00:03]} Kh7 {[%emt 0:00:16]} 23. Bc4 {[%emt 0:00:05][%cal Oe4e5]} b5 {[%emt 0:00:29]} (23... Bh6 $14 24. Be3 Bxe3+ 25. Qxe3 Re5) 24. axb6 {[%emt 0:00:05] White is more active.} (24. e5 $16 Rxe5 25. Rxe5 Qxe5 26. Nxc6) 24... axb6 $14 {[%emt 0:00:00]} 25. e5 {[%emt 0:00:09]} Rxe5 {[%emt 0:00:10]} 26. Rxe5 {[%emt 0:00:02]} Qxe5 {[%emt 0:00:01]} 27. Nxc6 {[%emt 0:00:12]} Qf6 {[%emt 0:00:09]} 28. Nd4 {[%emt 0:00:01]} (28. Rd8 Bg7 29. Bb5 Nb3 $17) (28. Nb4 {deserves consideration.}) 28... h3 $11 {[%emt 0:00:06]} 29. Bd5 {[%emt 0:00:17]} (29. Qe3 $11) 29... Ra7 {[%emt 0:00:03]} (29... Bh6 $1 $17 {[%cal Rh6c1]} 30. f4 (30. Be3 $2 Ra1 $19) 30... Bxf4) 30. g3 {[%emt 0:00:05]} Rd7 {[%emt 0:00:02]} 31. c4 {[%emt 0:00:01]} (31. Bc4 $11) 31... Re7 $2 {[%emt 0:00:12]} (31... Bb7 $1 $17 32. Bxb7 Nxb7) 32. Qf4 {[%emt 0:00:13]} Qxf4 {[%emt 0:00:21]} 33. gxf4 {[%emt 0:00:01]} Bh6 {[%emt 0:00:12]} (33... Kg7 $5 {[%cal Re7a7]}) 34. Bg3 {[%emt 0:00:06]} Bg7 {[%emt 0:00:01]} 35. Kf2 {[%emt 0:00:10]} Ra7 {[%emt 0:00:38]} 36. Rd2 {[%emt 0:00:00]} Ra3 {[%emt 0:00:57]} 37. Nb5 {[%emt 0:00:07]} Rb3 {[%emt 0:00:26]} 38. Nd6 {[%emt 0:00:01]} Bf5 {[%emt 0:00:04]} 39. Nxf5 {[%emt 0:00:03]} gxf5 {[%emt 0:00:01]} 40. Bxf7 {[%emt 0:00:01]} Nd3+ {[%emt 0:00:26]} 41. Ke2 {[%emt 0:00:01]} Nc1+ {[%emt 0:00:03]} 42. Kd1 {[%emt 0:00:01]} Nd3 {[%emt 0:00:03][%mdl 8192]} (42... Rb1 $1 $11 43. Rd6 Nb3+ 44. Ke2 Nd4+ 45. Ke3 Rb3+ 46. Kd2 Rb2+ 47. Ke3 Rb3+ 48. Kd2 Rb2+ 49. Kd1 Rb1+ 50. Kd2 Rb2+) 43. Ke2 $2 {[%emt 0:00:01]} (43. c5 $18 Nb2+ 44. Ke2) 43... Nc5 {[%emt 0:00:01]} 44. Bf2 {[%emt 0:00:05]} Bc3 {[%emt 0:00:03]} 45. Ra2 {[%emt 0:00:04]} Kg7 {[%emt 0:00:02]} 46. Bd5 {[%emt 0:00:01]} Kg6 {[%emt 0:00:02]} 47. Be3 {[%emt 0:00:02]} (47. Bxc5 $5 bxc5 48. Ra6+ Kg7 49. Ra7+ Kg6 50. Ra6+ Kg7 51. Kf2 $14) 47... Bf6 {[%emt 0:00:07]} 48. Bc6 {[%emt 0:00:02]} Nd3 {[%emt 0:00:03]} (48... Rb1 $11) 49. Be8+ $16 {[%emt 0:00:02] A strong pair of Bishops.} Kh6 {[%emt 0:00:02]} 50. Bd7 {[%emt 0:00:02]} (50. Ra6 $16) 50... Kg6 $1 $14 {[%emt 0:00:01]} 51. Be8+ {[%emt 0:00:01]} (51. Ba4 $5 {[%cal Ra4b3]} Rc3 52. Be8+ Kh6 53. Bd7 Nc1+ 54. Bxc1 Rxc1 55. Bxf5 Rxc4 56. Be4 $14 (56. Bxh3 Rxf4 57. Be6 b5 $14)) 51... Kh6 $1 {[%emt 0:00:01]} 52. Ba4 {[%emt 0:00:02]} (52. Ra6 $16) 52... Rc3 {[%emt 0:00:02]} 53. Rc2 {[%emt 0:00:01] Prevents Nc1+. Threatens to win with Rxc3.} (53. Bd7 $5 {[%cal Rd7f5]} Nc1+ 54. Bxc1 Rxc1 55. Bxf5 Rxc4 56. Be4 $16 (56. Bxh3 Rxf4 57. Bg4 Kg5 $14)) 53... Nc5 {[%emt 0:00:02]} (53... Ra3 $11 {remains equal.} 54. Bd7 Kg6) 54. Rxc3 $16 {[%emt 0:00:01]} Bxc3 {[%emt 0:00:01][%mdl 4096] Endgame KBB-KBN} 55. Bc2 {[%emt 0:00:04]} Kg6 {[%emt 0:00:01]} 56. Bd3 {[%emt 0:00:03]} ({White should try} 56. Kf2 $1) 56... Kf6 {[%emt 0:00:02]} (56... Bb4 $142) 57. Bc2 {[%emt 0:00:01]} Kg6 $1 {[%emt 0:00:01]} 58. Bf2 {[%emt 0:00:01]} ({White should play} 58. Kf2 $1 $16) 58... Bb2 {[%emt 0:00:02]} 59. Kd2 {[%emt 0:00:02]} Ba3 {[%emt 0:00:03]} 60. Bd3 {[%emt 0:00:01] [#]} (60. Bd1 $14) 60... Ne6 {[%emt 0:00:07]} (60... Bc1+ $1 $11 61. Kc3 Nxd3 62. Kxd3 Bxf4) 61. Bxb6 {[%emt 0:00:04]} Nxf4 {[%emt 0:00:01]} 62. Bf1 {[%emt 0:00:01]} Kf6 {[%emt 0:00:03]} 63. c5 {[%emt 0:00:02][%cal Bc4c5,Bc5c6][%mdl 32]} Ne6 {[%emt 0:00:02] Prevents Bd8+.} 64. c6 {[%emt 0:00:02]} (64. Bxh3 Bxc5 65. Bxc5 Nxc5) 64... Bd6 {[%emt 0:00:00]} 65. Bxh3 {[%emt 0:00:01]} (65. Kd3 $16) 65... Bxh2 $14 {[%emt 0:00:01]} 66. Bf1 {[%emt 0:00:01] Threatening Kc3.} Bd6 {[%emt 0:00:02]} (66... Bc7 $11 {keeps the balance.} 67. Bg1 Ke5) 67. Bc4 {[%emt 0:00:01]} ({Better is} 67. Kc3 $16) 67... Nc7 $2 {[%emt 0:00:01]} (67... Bc7 $11 68. Ba7 Ke5) 68. Bd4+ {[%emt 0:00:02]} Kg5 $2 {[%emt 0:00:01]} (68... Ke7 $16) 69. Ke2 {[%emt 0:00:06]} (69. Ke3 $18) 69... Kf4 $16 {[%emt 0:00:02]} 70. Be3+ {[%emt 0:00:03]} (70. Bb6 $16) 70... Ke5 $14 {[%emt 0:00:02]} 71. Kd3 {[%emt 0:00:00] Strongly threatening f4+.} Kf6 $2 {[%emt 0:00:06][%mdl 8192]} (71... Ba3 $14) 72. Bf2 $2 {[%emt 0:00:04]} (72. Bd2 $18 {and White stays clearly on top.} Ke5 73. f4+ Kf6 74. Bc3+ Ke7 75. Be5) 72... Kg5 $2 {[%emt 0:00:01][%mdl 8192]} (72... Ke5 $16 73. Bd4+ Kf4) 73. Be3+ {[%emt 0:00:00]} Kf6 {[%emt 0:00:01]} 74. Bd2 {[%emt 0:00:01]} Ke5 {[%emt 0:00:02]} 75. f4+ {[%emt 0:00:04]} Kf6 {[%emt 0:00:01] [#]} 76. Bc3+ $1 {[%emt 0:00:00]} Ke7 {[%emt 0:00:03] [#]} 77. Ke3 $2 {[%emt 0:00:02]} ({White has to play} 77. Be5 $1 $18) 77... Ne6 $2 {[%emt 0:00:04][%mdl 8192]} (77... Bc5+ $14 78. Kf3 Kd6) 78. Be5 {[%emt 0:00:03]} (78. Bxe6 $142 Kxe6 79. Be5 Bf8 80. Kd4 Be7 81. Kc4 Bh4 82. Kc5 Bf2+ 83. Kb5) 78... Bc5+ {[%emt 0:00:03]} 79. Kd3 {[%emt 0:00:02] White mates.} Bb6 {[%emt 0:00:01]} 80. Bxe6 {[%emt 0:00:02]} Kxe6 {[%emt 0:00:01]} 81. Kc4 {[%emt 0:00:01]} Ke7 {[%emt 0:00:04]} 82. Kb5 {[%emt 0:00:00]} Be3 {[%emt 0:00:02]} 83. Ka6 {[%emt 0:00:01] Weighted Error Value: White=0.39/Black=0.35} 1-0

[Event "Superbet Blitz Poland 2022"]
[Site "Warsaw"]
[Date "2022.05.22"]
[Round "2.2"]
[White "Wojtaszek, Radoslaw"]
[Black "Caruana, Fabiano"]
[Result "0-1"]
[ECO "E61"]
[WhiteElo "2696"]
[BlackElo "2786"]
[Annotator "TA"]
[PlyCount "116"]
[EventDate "2022.05.22"]
[EventType "tourn"]
[EventCountry "POL"]
[SourceTitle "playchess.com"]
[Source "ChessBase"]
[SourceQuality "1"]
[TimeControl "300+2"]

{[%evp 9,116,35,44,42,39,37,39,44,50,50,52,30,12,23,39,39,39,39,40,40,40,40,40,40,40,29,40,28,53,16,56,27,22,0,36,31,16,35,44,39,134,68,150,134,191,29,41,-85,-85,-85,-71,-81,-70,-81,-37,-30,-12,-12,-12,-12,0,0,0,0,0,0,0,0,0,0,0,0,0,-26,-26,-26,-26,-26,-26,-26,-11,-11,-12,-385,-34,-176,-120,-120,-120,-120,-120,-120,-120,-120,-120,-120,-120,-396,-389,-9064,-8735,-8214,-387,-7471,-7052,-6539,-4627,-3002,-2358]} 1. d4 {[%emt 0:00:01] RR} Nf6 {[%emt 0:00:01]} 2. c4 {[%emt 0:00:01]} d6 {[%emt 0:00:01]} 3. Nf3 {[%emt 0:00:03]} g6 {[%emt 0:00:02]} 4. Nc3 {[%emt 0:00:03]} Bf5 {[%emt 0:00:01]} (4... Bg7 5. e4 O-O 6. Be2 e5 7. O-O Bg4 8. Be3 Bxf3 9. Bxf3 exd4 10. Bxd4 Nc6 11. Be3 Re8 12. Qd2 Nd7 13. Rad1 Bxc3 14. Qxc3 Qf6 15. Qc1 Nc5 16. Qb1 Qe6 17. Rfe1 Qxc4 18. b3 Qc3 19. Bd2 Qf6 {0-1 (39) Wojtaszek,R (2705)-Caruana,F (2823) Wijk aan Zee 2021}) 5. d5 {[%emt 0:00:05]} e5 {[%emt 0:00:02]} 6. dxe6 {[%emt 0:00:05] E61: King's Indian: Early deviations for White, including Smyslov System.} Bxe6 {[%emt 0:00:01]} ({Less strong is} 6... Nc6 7. exf7+ Kxf7 8. e4 $16) 7. Nd4 {[%emt 0:00:01]} Bd7 {[%emt 0:00:02]} 8. e4 {[%emt 0:00:03] White is slightly better.} Bg7 {[%emt 0:00:01][%cal Of6e4]} 9. Be2 {[%emt 0:00:03]} O-O {[%emt 0:00:02]} 10. O-O {[%emt 0:00:04]} Re8 $1 {[%emt 0:00:04] 10...Re8 is better than 10...Nc6.} 11. f3 {[%emt 0:00:02]} Nc6 {[%emt 0:00:02]} 12. Be3 {[%emt 0:00:05]} Nxd4 $5 {[%emt 0:00:14][%mdl 4] Leaves trodden paths.} 13. Bxd4 {[%emt 0:00:02] [#]} a5 $146 {[%emt 0:00:06]} ({Predecessor:} 13... Bc6 14. Qd2 Nd7 15. Be3 Ne5 16. Nd5 b6 17. Bg5 f6 18. Bh4 Bxd5 19. cxd5 Qd7 {1-0 (40) Dobrev,N (2448)-Chabradze,B (2161) Sautron 2007 EXT 2008 [RR]}) 14. Qd2 {[%emt 0:00:20]} Bc6 {[%emt 0:00:02]} 15. b3 {[%emt 0:00:03]} Nd7 {[%emt 0:00:10]} 16. Bxg7 {[%emt 0:00:04]} Kxg7 {[%emt 0:00:01]} 17. Rae1 {[%emt 0:00:07]} Nc5 {[%emt 0:00:09]} 18. Bd1 {[%emt 0:00:05]} Qf6 {[%emt 0:00:08]} 19. Bc2 {[%emt 0:00:04]} Re7 {[%emt 0:00:27]} 20. Kh1 {[%emt 0:00:07]} h5 {[%emt 0:00:04]} 21. a3 {[%emt 0:00:14]} b6 {[%emt 0:00:05]} 22. b4 {[%emt 0:00:18]} axb4 {[%emt 0:00:02]} 23. axb4 {[%emt 0:00:01]} Nd7 {[%emt 0:01:22]} 24. f4 {[%emt 0:00:13]} Qh4 {[%emt 0:00:54]} (24... Ra3 $14 25. e5 dxe5) 25. Re3 {[%emt 0:00:18]} ({White should try} 25. Nd5 $16 Bxd5 26. cxd5) 25... Nf6 {[%emt 0:00:14]} (25... Qf6 $14) 26. Qd4 $16 {[%emt 0:00:02]} Bb7 {[%emt 0:00:21]} 27. Bd1 $2 {[%emt 0:00:10]} ({Better is} 27. b5 $1 $18) 27... c5 $1 $11 {[%emt 0:00:07]} 28. Qxd6 {[%emt 0:00:24]} (28. bxc5 $1 $14 bxc5 29. Qd3 (29. Qxd6 Nxe4 30. Nxe4 Bxe4 $11)) 28... Nxe4 $17 {[%emt 0:00:01]} 29. Nxe4 {[%emt 0:00:12]} Bxe4 {[%emt 0:00:02] Chess con chili.} 30. Bf3 {[%emt 0:00:32]} Re6 {[%emt 0:00:10]} 31. Qd2 {[%emt 0:00:05]} Qxf4 {[%emt 0:00:18] White must now prevent ...Bxf3. Black is more active.} 32. Qc3+ $1 {[%emt 0:00:19]} Kg8 {[%emt 0:00:01] Hoping for ...cxb4.} 33. bxc5 {[%emt 0:00:46]} bxc5 {[%emt 0:00:03] Threatening ...Ra2.} 34. Kg1 {[%emt 0:00:01] Bxe4 is the strong threat.} Bxf3 {[%emt 0:00:34]} 35. Rexf3 {[%emt 0:00:02]} Qd4+ {[%emt 0:00:02]} 36. Qxd4 {[%emt 0:00:01]} cxd4 {[%emt 0:00:02]} 37. Rxf7 $11 {[%emt 0:00:01][%mdl 4096] Endgame KRR-KRR} Rd8 {[%emt 0:00:02]} 38. R7f3 {[%emt 0:00:18]} Rc6 {[%emt 0:00:05]} 39. Rc1 {[%emt 0:00:36]} Rdc8 {[%emt 0:00:01]} 40. Rd3 {[%emt 0:00:17]} Rxc4 {[%emt 0:00:01]} 41. Rcd1 {[%emt 0:00:02]} Rd8 {[%emt 0:00:01]} 42. Kf2 {[%emt 0:00:01]} Kf7 {[%emt 0:00:02]} 43. Kf3 {[%emt 0:00:01]} Kf6 {[%emt 0:00:13]} 44. Ke4 {[%emt 0:00:01]} Re8+ {[%emt 0:00:00]} 45. Kf3 {[%emt 0:00:04]} Rc3 {[%emt 0:00:03]} 46. Kf4 $2 {[%emt 0:00:01][%mdl 8192]} (46. Rxc3 $11 {and White stays safe.} dxc3 47. Rc1) 46... Rc2 $2 {[%emt 0:00:02]} (46... Rxd3 $19 47. Rxd3 g5+ 48. Kf3 Ke5) 47. Kf3 {[%emt 0:00:05] [#]} (47. h4 $15) 47... Ree2 {[%emt 0:00:01]} (47... Rce2 $1 $19 48. R1d2 R2e3+ 49. Rxe3 Rxe3+ 50. Kf2 Ke5) 48. Rxd4 $17 {[%emt 0:00:01]} Rf2+ {[%emt 0:00:04]} 49. Ke3 {[%emt 0:00:01]} Rce2+ {[%emt 0:00:01]} 50. Kd3 {[%emt 0:00:01][%cal Od4f4]} Rxg2 {[%emt 0:00:02]} 51. h4 {[%emt 0:00:04]} Ra2 {[%emt 0:00:02]} 52. Rf1+ {[%emt 0:00:01] [#]} Kg7 $1 {[%emt 0:00:03]} 53. Rd7+ $2 {[%emt 0:00:01][%mdl 8192]} (53. Rff4 $17) 53... Kh6 $19 {[%emt 0:00:01]} 54. Ke3 {[%emt 0:00:05] Prevents Rad2.} (54. Rff7 Ra3+ 55. Kd4 Rg4+ 56. Kc5 Rxh4 57. Rh7+ Kg5 58. Rh8) 54... Ra3+ {[%emt 0:00:01]} 55. Kf4 {[%emt 0:00:02]} Rg4+ {[%emt 0:00:01]} 56. Ke5 {[%emt 0:00:01]} Re3+ {[%emt 0:00:02] Black is clearly winning.} 57. Kd6 {[%emt 0:00:01]} Rd3+ {[%emt 0:00:01]} 58. Kc6 {[%emt 0:00:01]} Rxd7 {[%emt 0:00:01] Quite a comeback for Black.  Weighted Error Value: White=0.48/Black=0.23 (precise)} 0-1

[Event "Superbet Blitz Poland 2022"]
[Site "Warsaw"]
[Date "2022.05.22"]
[Round "2.3"]
[White "Duda, Jan-Krzysztof"]
[Black "So, Wesley"]
[Result "0-1"]
[ECO "C65"]
[WhiteElo "2750"]
[BlackElo "2766"]
[Annotator "TA"]
[PlyCount "85"]
[EventDate "2022.05.22"]
[EventType "tourn"]
[EventCountry "POL"]
[SourceTitle "playchess.com"]
[Source "ChessBase"]
[SourceQuality "1"]
[TimeControl "300+2"]

{[%evp 9,85,18,24,8,12,8,32,0,34,18,37,26,29,19,52,0,0,0,0,-30,-37,-45,-48,-27,-22,-59,-59,-66,-79,-69,0,-41,-46,-46,0,-125,-120,-142,-98,-96,-87,-266,-274,-284,-285,-259,-272,-339,-192,-281,-282,-267,-275,-493,-493,-493,-452,-446,-397,-703,-506,-494,-464,-470,-457,-833,-273,-259,-204,-630,-613,-735,-459,-670,-494,-1170,-1137,-1196]} 1. e4 {[%emt 0:00:01]} e5 {[%emt 0:00:03]} 2. Nf3 {[%emt 0:00:01]} Nc6 {[%emt 0:00:01]} 3. Bb5 {[%emt 0:00:02]} Nf6 {[%emt 0:00:01]} 4. d3 {[%emt 0:00:01]} Bc5 {[%emt 0:00:01]} 5. Bxc6 {[%emt 0:00:01]} dxc6 {[%emt 0:00:01]} 6. Nbd2 {[%emt 0:00:01] C65: Ruy Lopez: Berlin Defence (3...Nf6), unusual lines and 4 0-0 Bc5.} O-O {[%emt 0:00:03]} 7. Nc4 {[%emt 0:00:10]} Re8 {[%emt 0:00:01]} (7... Ng4 {keeps more tension.} 8. O-O f5 9. Qe2 fxe4 10. dxe4 Be6) 8. Be3 {[%emt 0:00:09] [#] White is slightly better.} Bb4+ $146 {[%emt 0:00:13]} ({Predecessor:} 8... Bxe3 9. Nxe3 a5 10. a4 Ng4 11. Nc4 Be6 12. Ncd2 f6 13. b3 Nh6 14. Nf1 b6 {½-½ (32) Panitevsky,I (2535)-Ostriker,J (2560) ICCF email 2019}) 9. Bd2 {[%emt 0:00:06]} Bxd2+ {[%emt 0:00:12]} 10. Qxd2 {[%emt 0:00:03]} Nd7 {[%emt 0:00:06]} 11. g4 {[%emt 0:00:18]} Nf8 {[%emt 0:00:14]} 12. g5 {[%emt 0:00:16] Prevents Qf6.} (12. Nfxe5 f6 13. Nf3 Bxg4 $11) ({Better is} 12. Ne3 $14) 12... Ng6 $11 {[%emt 0:00:30]} 13. h4 {[%emt 0:00:03] And now h5 would win.} Bg4 {[%emt 0:00:04]} 14. Qe3 {[%emt 0:00:06]} Bh5 {[%emt 0:00:01]} 15. O-O-O {[%emt 0:00:15]} a5 {[%emt 0:00:01]} 16. Rdf1 {[%emt 0:00:55]} a4 {[%emt 0:00:02]} 17. Ng1 {[%emt 0:00:11]} b5 {[%emt 0:00:07]} 18. Nd2 {[%emt 0:00:01]} Nf4 {[%emt 0:00:06]} 19. f3 {[%emt 0:00:09]} b4 {[%emt 0:00:16] 0x0.001df5115825dp-1022s more active pieces.} (19... a3 $15 20. b3 Qd6) 20. Nh3 {[%emt 0:00:11]} b3 {[%emt 0:00:40]} 21. axb3 {[%emt 0:00:16]} Ne6 {[%emt 0:00:06]} 22. b4 {[%emt 0:00:50]} (22. f4 $1 $11 {keeps the balance.}) 22... a3 $36 {[%emt 0:00:08][%mdl 2048] Keeping White busy.} 23. bxa3 {[%emt 0:00:26]} Rxa3 {[%emt 0:00:06]} 24. Kb2 {[%emt 0:00:01]} (24. Nc4 $2 Ra2 25. Na5 Nd4 $19) 24... Ra4 {[%emt 0:00:07]} 25. c3 {[%emt 0:00:05] Now White is beyond hope.} (25. Ra1 $17 {was forced.} Rxb4+ 26. Kc1) 25... c5 $1 $19 {[%emt 0:00:00]} 26. Ra1 {[%emt 0:00:13] [#]} Rxa1 {[%emt 0:00:02]} 27. Rxa1 {[%emt 0:00:01]} cxb4 {[%emt 0:00:01]} 28. cxb4 {[%emt 0:00:09]} Qd6 {[%emt 0:00:00]} (28... Qb8 $142 29. Kc3 c5) 29. Ra4 {[%emt 0:00:10]} (29. Kc3 $142) 29... Nd4 {[%emt 0:00:01][%cal Be6d4,Bd4e2,Be2f4][%mdl 32]} ({Weaker is} 29... Qc6 30. Qa7 $17) 30. Nc4 {[%emt 0:00:13]} Qd7 {[%emt 0:00:02]} 31. Ra5 {[%emt 0:00:10]} (31. Nxe5 Qxa4 32. Qxd4) 31... Qxh3 {[%emt 0:00:02]} 32. Nxe5 {[%emt 0:00:09]} Qh2+ {[%emt 0:00:10]} 33. Kc3 {[%emt 0:00:04]} Ne2+ {[%emt 0:00:13]} (33... Rd8 $2 34. Qxd4 Rf8 35. Nc6 $18) ({But not} 33... c5 $2 34. Rxc5 Ne6 35. Ra5 $19) 34. Kc4 $2 {[%emt 0:00:01]} (34. Kb3) 34... Nf4 {[%emt 0:00:09] White must now prevent ...Qc2+.} 35. d4 {[%emt 0:00:05]} Qc2+ {[%emt 0:00:07]} 36. Qc3 {[%emt 0:00:05]} Qe2+ {[%emt 0:00:02]} 37. Kc5 {[%emt 0:00:08] [#]} (37. Kb3 $142) 37... Qf2 $2 {[%emt 0:00:24]} (37... Bxf3 $1 {[%mdl 512] ( -> ...Ne6+)} 38. Nxf3 Nd3+ 39. Kc6 Qxf3) 38. Kc6 {[%emt 0:00:04]} Qxh4 {[%emt 0:00:01]} 39. Nd7 $2 {[%emt 0:00:05]} (39. Kb7) 39... Qh3 {[%emt 0:00:09] ...Rd8 is the strong threat. Black is clearly winning.} 40. d5 {[%emt 0:00:03][%cal Oc3e5]} Bxf3 {[%emt 0:00:05]} 41. Kxc7 {[%emt 0:00:03]} (41. Qe5 $142 Rd8 42. Qxc7) 41... Qh2 {[%emt 0:00:19]} 42. Kb6 {[%emt 0:00:02]} (42. Kb7 $142 Bxe4 43. Qc6 Nxd5 44. Rxd5) 42... Bxe4 {[%emt 0:00:05]} 43. Qc6 {[%emt 0:00:05] Weighted Error Value: White=0.84/Black=0.44} 0-1

[Event "Superbet Blitz Poland 2022"]
[Site "Warsaw"]
[Date "2022.05.22"]
[Round "2.4"]
[White "Korobov, Anton"]
[Black "Anand, Viswanathan"]
[Result "1/2-1/2"]
[ECO "A33"]
[WhiteElo "2671"]
[BlackElo "2751"]
[Annotator "TA"]
[PlyCount "52"]
[EventDate "2022.05.22"]
[EventType "tourn"]
[EventCountry "POL"]
[SourceTitle "playchess.com"]
[Source "ChessBase"]
[SourceQuality "1"]
[TimeControl "300+2"]

{[%evp 11,52,4,13,6,2,14,8,19,14,14,14,10,8,-3,-7,-10,-10,-8,0,-6,-6,-6,0,-9,-14,-10,0,0,0,0,0,0,0,0,0,0,0,0,0,0,8,12,33]} 1. c4 {[%emt 0:00:01]} c5 {[%emt 0:00:01]} 2. Nf3 {[%emt 0:00:04]} Nf6 {[%emt 0:00:01]} 3. Nc3 {[%emt 0:00:03]} Nc6 {[%emt 0:00:02]} 4. d4 {[%emt 0:00:01]} cxd4 {[%emt 0:00:01]} 5. Nxd4 {[%emt 0:00:02]} e6 {[%emt 0:00:02]} 6. a3 {[%emt 0:00:02]} d5 {[%emt 0:00:05] The position is equal.} 7. cxd5 {[%emt 0:00:13] A33: Symmetrical English: 2 Nf3 Nf6 3 d4 cxd4 4 Nxd4 e6 5 Nc3 Nc6.} exd5 {[%emt 0:00:01]} 8. g3 {[%emt 0:00:05]} Bc5 {[%emt 0:00:04]} 9. Be3 {[%emt 0:00:07] [#] Hoping for Nxc6.} Bb6 {[%emt 0:00:02]} (9... Qb6 $2 10. Na4 Qa5+ 11. b4 Nxb4 12. axb4 Bxb4+ 13. Bd2 $18) 10. Bg2 {[%emt 0:00:09]} O-O {[%emt 0:00:02][%cal Bh8f8,Bf8e8,Be8e2,Be2b2,Bb2b6][%mdl 32]} 11. O-O {[%emt 0:00:12]} Re8 {[%emt 0:00:02] [#]} 12. Na4 $146 {[%emt 0:00:44]} (12. Qd2 {with more complications.} Bg4 13. Rfd1 Bxd4 14. Bxd4 Nxd4 15. Qxd4 Bxe2 16. Rd2) ({Predecessor:} 12. h3 Be6 13. Na4 Bxd4 14. Bxd4 Ne4 15. Nc3 Qd7 16. Kh2 Bf5 17. e3 Rac8 18. Rc1 {½-½ (43) Malakhov,V (2702)-Alekseev,E (2653) St Petersburg 2015}) 12... Bxd4 {[%emt 0:00:21]} 13. Bxd4 {[%emt 0:00:02]} Nxd4 {[%emt 0:00:01]} 14. Qxd4 {[%emt 0:00:02]} Rxe2 {[%emt 0:00:02]} 15. Nc3 {[%emt 0:00:10][%csl LRd5,LRe2]} Rxb2 {[%emt 0:01:17]} 16. Nxd5 {[%emt 0:00:29] [#]} Rb6 {[%emt 0:00:02]} 17. Rad1 {[%emt 0:01:01]} (17. Qh4 Rd6) 17... Nxd5 {[%emt 0:00:05]} 18. Bxd5 {[%emt 0:00:03]} Qf8 {[%emt 0:00:20]} 19. Rfe1 $40 {[%emt 0:00:04][%mdl 128] Black needs to defend precisely.} Be6 {[%emt 0:00:02]} 20. Bxe6 {[%emt 0:00:04]} Rxe6 {[%emt 0:00:01]} 21. Rxe6 {[%emt 0:00:03]} fxe6 $11 {[%emt 0:00:01] KQR-KQR} 22. Qd7 {[%emt 0:00:24]} Re8 {[%emt 0:00:06]} 23. Qxb7 {[%emt 0:00:10]} Qxa3 {[%emt 0:00:02]} 24. Rd7 {[%emt 0:00:07]} Qa1+ {[%emt 0:00:03]} 25. Kg2 {[%emt 0:00:01]} Qf6 {[%emt 0:00:03]} 26. Qxa7 {[%emt 0:00:07]} Rf8 {[%emt 0:00:03] A balanced but interesting game.  Weighted Error Value: White=0.02 (flawless) /Black=0.02 (flawless)} 1/2-1/2